bitfinex/quotes_BTCUSD_20220101
["timestamp","ask_amount","ask_price","bid_price","bid_amount"]
[1641028814533,1.5413808,47157.0,47156.0,0.01038432]
[1641028815431,1.53881314,47157.0,47156.0,0.01038432]
[1641028816230,1.56034595,47157.0,47156.0,0.01038432]
[1641028816431,1.54192594,47157.0,47156.0,0.01038432]
[1641028817430,1.5600904,47157.0,47156.0,0.01038432]
[1641028817632,1.53855759,47157.0,47156.0,0.01038432]
[1641028818282,1.55875037,47157.0,47156.0,0.01038432]
[1641028818483,1.54058591,47157.0,47156.0,0.01038432]
[1641028819086,1.910123,47157.0,47156.0,0.01038432]
[1641028819484,1.9095015,47157.0,47156.0,0.01038432]
[1641028820291,1.79786879,47157.0,47156.0,0.01038432]
[1641028820490,1.77829751,47157.0,47156.0,0.01038432]
[1641028820687,2.25259368,47157.0,47156.0,0.01038432]
[1641028821292,2.13200891,47157.0,47156.0,0.01038432]
[1641028821488,2.15180906,47157.0,47156.0,0.01038432]
[1641028821762,2.13100994,47157.0,47156.0,0.01038432]
[1641028822454,2.14975527,47157.0,47156.0,0.01038432]
[1641028823257,2.11120979,47157.0,47156.0,0.01038432]
[1641028823459,2.1313259,47157.0,47156.0,0.01038432]
[1641028824557,2.13092704,47157.0,47156.0,0.01038432]
[1641028825360,2.15224231,47157.0,47156.0,0.01038432]
[1641028825593,2.13252506,47157.0,47156.0,0.01038432]
[1641028826094,1.79321706,47157.0,47156.0,0.11038432]
[1641028826296,1.79321706,47157.0,47156.0,0.30395717]
[1641028826495,1.79321706,47157.0,47156.0,0.01038432]
[1641028826698,1.06996857,47157.0,47156.0,0.01038432]
[1641028827096,1.09127929,47157.0,47156.0,0.01038432]
[1641028827299,1.06996402,47157.0,47156.0,0.01038432]
[1641028827497,1.09156809,47157.0,47156.0,0.01038432]
[1641028827696,1.07025737,47157.0,47156.0,0.01038432]
[1641028828500,1.08912278,47157.0,47156.0,0.2438978]
[1641028828799,1.06751871,47157.0,47156.0,0.2438978]
[1641028828998,1.06676334,47157.0,47156.0,0.2438978]
[1641028829245,1.06604253,47157.0,47156.0,0.2438978]
[1641028829437,1.08519269,47157.0,47156.0,0.2438978]
[1641028829636,1.06632728,47157.0,47156.0,0.2438978]
[1641028830439,1.08433198,47157.0,47156.0,0.2438978]
[1641028830641,1.06518182,47157.0,47156.0,0.2438978]
[1641028831543,1.08340935,47157.0,47156.0,0.2438978]
[1641028831745,1.06540465,47157.0,47156.0,0.2438978]
[1641028831943,1.06540465,47157.0,47156.0,0.01038432]
[1641028832546,1.08673141,47157.0,47156.0,0.01038432]
[1641028832744,0.06850388,47157.0,47156.0,0.01038432]
[1641028832987,0.06850388,47157.0,47156.0,0.34969232]
[1641028833189,0.06850388,47157.0,47156.0,0.60345968]
[1641028834189,0.04717712,47157.0,47156.0,0.60345968]
[1641028835391,0.04717712,47157.0,47156.0,0.60329536]
[1641028838631,0.06251098,47166.0,47156.0,0.60329536]
[1641028838632,0.0541,47158.0,47156.0,0.60329536]
[1641028838833,0.0541,47158.0,47157.0,0.48307942]
[1641028839032,0.0541,47158.0,47157.0,0.82253348]
[1641028839232,0.0541,47158.0,47157.0,1.07854889]
[1641028839431,0.00948898,47166.0,47165.0,0.45785654]
[1641028839633,0.00948898,47166.0,47165.0,1.04430922]
[1641028840233,0.0541,47170.0,47165.0,1.04430922]
[1641028840482,0.0541,47170.0,47167.0,0.26163117]
[1641028840682,7.304e-05,47169.0,47168.0,0.61216468]
[1641028840884,7.304e-05,47169.0,47168.0,0.6133817]
[1641028842085,0.00952189,47174.0,47168.0,0.6633817]
[1641028842285,0.0541,47176.0,47168.0,0.6633817]
[1641028842485,7.303e-05,47173.0,47168.0,0.6633817]
[1641028842685,7.303e-05,47173.0,47172.0,0.30022905]
[1641028842889,7.303e-05,47173.0,47172.0,0.88547918]
[1641028845338,7.303e-05,47173.0,47172.0,1.09547918]
[1641028846840,7.303e-05,47173.0,47172.0,0.75617118]
[1641028847140,7.303e-05,47173.0,47172.0,0.549308]
[1641028847340,7.303e-05,47173.0,47172.0,0.21]
[1641028847740,7.303e-05,47173.0,47172.0,0.549308]
[1641028848005,7.303e-05,47173.0,47172.0,0.77662428]
[1641028848805,7.303e-05,47173.0,47172.0,1.05920187]
[1641028849607,0.01055872,47186.0,47174.0,0.23775821]
[1641028849805,0.01055872,47186.0,47175.0,0.22137684]
[1641028850007,0.053009,47177.0,47175.0,0.22137684]
[1641028851836,0.05311754,47179.0,47175.0,0.22137684]
[1641028852237,9.129e-05,47178.0,47175.0,0.22137684]
[1641028852638,7.303e-05,47177.0,47175.0,0.22137684]
[1641028853036,9.129e-05,47178.0,47175.0,0.22137684]
[1641028853440,7.303e-05,47177.0,47176.0,0.339308]
[1641028853639,7.303e-05,47177.0,47175.0,0.22137684]
[1641028853845,0.05308203,47177.0,47175.0,0.22137684]
[1641028854040,7.303e-05,47177.0,47176.0,0.339308]
[1641028854839,7.303e-05,47177.0,47176.0,0.35933889]
[1641028855038,7.303e-05,47177.0,47176.0,0.58154097]
[1641028855696,7.303e-05,47177.0,47176.0,0.60285582]
[1641028855896,7.303e-05,47177.0,47176.0,0.58282493]
[1641028856694,7.303e-05,47177.0,47176.0,0.60294972]
[1641028856896,7.303e-05,47177.0,47176.0,0.58292734]
[1641028857296,7.303e-05,47177.0,47176.0,1.21883734]
[1641028857696,7.303e-05,47177.0,47176.0,1.23765091]
[1641028857896,7.303e-05,47177.0,47176.0,1.21752612]
[1641028858803,7.303e-05,47177.0,47176.0,1.21684936]
[1641028859840,7.303e-05,47177.0,47176.0,1.23582498]
[1641028860139,7.303e-05,47177.0,47176.0,1.21768817]
[1641028860739,7.303e-05,47177.0,47176.0,1.23831706]
[1641028860939,7.303e-05,47177.0,47176.0,1.21934144]
[1641028861740,7.303e-05,47177.0,47176.0,1.239173]
[1641028861942,7.303e-05,47177.0,47176.0,1.21854411]
[1641028862741,7.303e-05,47177.0,47176.0,1.23728612]
[1641028862996,7.303e-05,47177.0,47176.0,1.21745456]
[1641028863899,7.303e-05,47177.0,47176.0,1.23648303]
[1641028864301,7.303e-05,47177.0,47176.0,1.34246903]
[1641028864698,7.303e-05,47177.0,47176.0,1.36371036]
[1641028864898,7.303e-05,47177.0,47176.0,1.32593988]
[1641028865703,7.303e-05,47177.0,47176.0,1.34740762]
[1641028865901,7.303e-05,47177.0,47176.0,1.32616629]
[1641028866758,7.303e-05,47177.0,47176.0,1.34547217]
[1641028866953,7.303e-05,47177.0,47176.0,1.32400443]
[1641028867757,7.303e-05,47177.0,47176.0,1.34294746]
[1641028867956,7.303e-05,47177.0,47176.0,1.32364158]
[1641028869161,7.303e-05,47177.0,47176.0,1.21765558]
[1641028869458,7.303e-05,47177.0,47176.0,1.23627205]
[1641028869657,7.303e-05,47177.0,47176.0,1.21732902]
[1641028869858,7.303e-05,47177.0,47176.0,1.23689325]
[1641028870061,7.303e-05,47177.0,47176.0,1.21827678]
[1641028870806,7.303e-05,47177.0,47176.0,1.23924895]
[1641028871005,7.303e-05,47177.0,47176.0,1.21968472]
[1641028871208,7.303e-05,47177.0,47176.0,0.99748264]
[1641028871610,7.303e-05,47177.0,47176.0,0.65817464]
[1641028871810,7.303e-05,47177.0,47176.0,0.67957274]
[1641028872007,7.303e-05,47177.0,47176.0,0.65860057]
[1641028872408,0.03250486,47177.0,47176.0,0.65860057]
[1641028872808,0.03250486,47177.0,47176.0,0.67994282]
[1641028873008,0.03250486,47177.0,47176.0,0.65854472]
[1641028873708,0.03250486,47177.0,47176.0,0.67850565]
[1641028874112,0.03250486,47177.0,47176.0,0.6571634]
[1641028874761,0.03250486,47177.0,47176.0,0.6773721]
[1641028874959,0.03250486,47177.0,47176.0,0.65741117]
[1641028875758,0.03250486,47177.0,47176.0,0.67548555]
[1641028875960,7.303e-05,47177.0,47176.0,0.65527685]
[1641028876161,7.303e-05,47177.0,47176.0,0.99458485]
[1641028876963,7.303e-05,47177.0,47176.0,1.01341527]
[1641028877160,7.303e-05,47177.0,47176.0,0.99534089]
[1641028877772,7.303e-05,47177.0,47176.0,1.01654706]
[1641028878016,7.303e-05,47177.0,47176.0,0.99771664]
[1641028878915,7.303e-05,47177.0,47176.0,1.01716911]
[1641028879917,7.303e-05,47177.0,47176.0,1.03796366]
[1641028880918,7.303e-05,47177.0,47176.0,1.05830558]
[1641028881119,7.303e-05,47177.0,47176.0,0.99685239]
[1641028881518,7.303e-05,47177.0,47176.0,0.65754439]
[1641028881951,7.303e-05,47177.0,47176.0,0.67559291]
[1641028882155,7.303e-05,47177.0,47176.0,0.65525099]
[1641028882951,7.303e-05,47177.0,47176.0,0.67447969]
[1641028883153,7.303e-05,47177.0,47176.0,0.65780351]
[1641028883853,0.053008,47179.0,47176.0,0.67744187]
[1641028884055,0.053008,47179.0,47176.0,0.65821317]
[1641028884254,9.129e-05,47178.0,47176.0,0.65821317]
[1641028884554,7.303e-05,47177.0,47176.0,0.65821317]
[1641028884755,7.303e-05,47177.0,47176.0,0.99752117]
[1641028884953,7.303e-05,47177.0,47176.0,1.01583244]
[1641028885158,7.303e-05,47177.0,47176.0,0.99619408]
[1641028886093,7.303e-05,47177.0,47176.0,0.65759506]
[1641028886494,0.27846875,47177.0,47176.0,0.65759506]
[1641028886892,0.27846875,47177.0,47176.0,0.67882228]
[1641028887105,2.27038269,47177.0,47176.0,0.02259956]
[1641028887297,0.60437362,47175.0,47172.0,0.21]
[1641028887493,1.38173983,47173.0,47172.0,0.21]
[1641028887693,0.47173983,47173.0,47172.0,0.21]
[1641028887896,0.86620632,47173.0,47172.0,0.21]
[1641028888092,0.87141602,47173.0,47172.0,0.21]
[1641028888492,0.87141602,47173.0,47172.0,0.2111869]
[1641028888893,0.89256556,47173.0,47172.0,0.2111869]
[1641028889094,1.18977765,47173.0,47172.0,0.2111869]
[1641028889749,1.16862811,47173.0,47172.0,0.2111869]
[1641028889951,1.18756572,47173.0,47172.0,0.2111869]
[1641028890446,1.18235602,47173.0,47172.0,0.2111869]
[1641028891047,1.2029574,47173.0,47172.0,0.2111869]
[1641028891247,1.38401979,47173.0,47172.0,0.2111869]
[1641028891646,1.18401979,47173.0,47172.0,0.2111869]
[1641028891947,1.15419007,47173.0,47172.0,0.2111869]
[1641028892146,1.13358869,47173.0,47172.0,0.2111869]
[1641028892993,1.15510528,47173.0,47172.0,0.2111869]
[1641028893795,1.11341841,47173.0,47172.0,0.2111869]
[1641028893996,1.13372427,47173.0,47172.0,0.2111869]
[1641028894196,1.11341841,47173.0,47172.0,0.2111869]
[1641028894996,1.13395085,47173.0,47172.0,0.2111869]
[1641028895996,1.1541126,47173.0,47172.0,0.2111869]
[1641028896198,1.13358016,47173.0,47172.0,0.2111869]
[1641028897054,1.15400533,47173.0,47172.0,0.2111869]
[1641028897251,1.13384358,47173.0,47172.0,0.2111869]
[1641028898156,1.13382668,47173.0,47172.0,0.2111869]
[1641028898954,1.1540672,47173.0,47172.0,0.2111869]
[1641028899158,1.13365893,47173.0,47172.0,0.2111869]
[1641028899956,1.15241989,47173.0,47172.0,0.2111869]
[1641028900159,0.83496728,47173.0,47172.0,0.2111869]
[1641028901006,0.2,47171.0,47166.0,0.00948913]
[1641028901218,0.00128906,47164.0,47162.0,0.00638715]
[1641028901403,0.67173982,47163.0,47162.0,0.00638715]
[1641028901602,0.82173982,47163.0,47162.0,0.00638715]
[1641028901801,0.82173982,47163.0,47162.0,0.00658799]
[1641028902203,2.33766431,47163.0,47162.0,0.00658799]
[1641028902803,2.23766432,47163.0,47162.0,0.00658799]
[1641028903206,2.25598934,47163.0,47162.0,0.00658799]
[1641028903403,1.5414957,47163.0,47162.0,0.00658799]
[1641028904003,1.56163375,47163.0,47162.0,0.00658799]
[1641028904652,1.26589569,47163.0,47162.0,0.00658799]
[1641028905156,1.23681933,47163.0,47162.0,0.00658799]
[1641028905353,1.19835626,47163.0,47162.0,0.00658799]
[1641028905553,1.24835626,47163.0,47162.0,0.00658799]
[1641028905857,0.79570347,47163.0,47162.0,0.00658799]
[1641028906053,1.07812019,47163.0,47162.0,0.00020084]
[1641028906556,0.05,47162.0,47161.0,0.0002191]
[1641028906856,0.42173983,47162.0,47161.0,0.0002191]
[1641028907076,0.52173983,47162.0,47161.0,0.0002191]
[1641028908093,0.79928773,47162.0,47161.0,0.0002191]
[1641028908896,0.79772927,47162.0,47161.0,0.0002191]
[1641028909097,0.81856576,47162.0,47161.0,0.0002191]
[1641028909296,0.79968021,47162.0,47161.0,0.0002191]
[1641028909697,0.33771508,47161.0,47160.0,0.0050437]
[1641028909897,0.42318391,47161.0,47160.0,0.0050437]
[1641028910196,0.52318391,47161.0,47160.0,0.0050437]
[1641028911002,0.54235355,47161.0,47160.0,0.0050437]
[1641028911302,0.54235355,47161.0,47159.0,0.0063889]
[1641028911498,0.42173983,47160.0,47159.0,0.0063889]
[1641028911747,0.78883754,47160.0,47159.0,0.0063889]
[1641028911949,0.88883754,47160.0,47159.0,0.0063889]
[1641028913449,0.62781783,47160.0,47159.0,0.0063889]
[1641028913651,0.64874586,47160.0,47159.0,0.0063889]
[1641028914648,0.66980096,47160.0,47159.0,0.0063889]
[1641028914849,0.64887293,47160.0,47159.0,0.0063889]
[1641028915048,0.66966494,47160.0,47159.0,0.0063889]
[1641028915249,0.64860984,47160.0,47159.0,0.0063889]
[1641028916098,0.64860984,47160.0,47156.0,0.01022]
[1641028916302,0.03243183,47157.0,47156.0,0.01022]
[1641028917600,0.03243183,47157.0,47156.0,0.31104328]
[1641028917801,0.03243183,47157.0,47156.0,0.01022]
[1641028920753,0.06292521,47157.0,47156.0,0.01022]
[1641028920955,0.09406657,47157.0,47156.0,0.01022]
[1641028929656,0.43349257,47157.0,47156.0,0.01022]
[1641028931906,0.45226907,47157.0,47156.0,0.01022]
[1641028932900,0.47352495,47157.0,47156.0,0.01022]
[1641028933100,0.45474845,47157.0,47156.0,0.01022]
[1641028933305,0.47325067,47157.0,47156.0,0.01022]
[1641028933503,0.45199479,47157.0,47156.0,0.01022]
[1641028934362,0.47076193,47157.0,47156.0,0.01022]
[1641028934561,0.45225971,47157.0,47156.0,0.01022]
[1641028935362,0.47397542,47157.0,47156.0,0.01022]
[1641028935562,0.45520828,47157.0,47156.0,0.01022]
[1641028936364,0.4770943,47157.0,47156.0,0.01022]
[1641028936564,0.45537859,47157.0,47156.0,0.01022]
[1641028937265,0.47733297,47157.0,47156.0,0.01022]
[1641028938197,0.43349257,47157.0,47156.0,0.01022]
[1641028938498,0.45150291,47157.0,47156.0,0.01022]
[1641028939396,0.45451821,47157.0,47156.0,0.01022]
[1641028940300,0.47497271,47157.0,47156.0,0.01022]
[1641028941301,0.49470355,47157.0,47156.0,0.01022]
[1641028941498,0.45322341,47157.0,47156.0,0.01022]
[1641028942354,0.47201546,47157.0,47156.0,0.01022]
[1641028942556,0.45228462,47157.0,47156.0,0.01022]
[1641028943353,0.4732374,47157.0,47156.0,0.01022]
[1641028943554,0.45444535,47157.0,47156.0,0.01022]
[1641028944454,0.45340986,47157.0,47156.0,0.01022]
[1641028944655,0.55340986,47157.0,47156.0,0.01022]
[1641028945695,0.98548253,47157.0,47156.0,0.01022]
[1641028946097,1.00433279,47157.0,47156.0,0.01022]
[1641028946299,0.9844155,47157.0,47156.0,0.01022]
[1641028946498,0.98671761,47157.0,47156.0,0.01022]
[1641028947301,1.00513649,47157.0,47156.0,0.01022]
[1641028947502,0.98398412,47157.0,47156.0,0.01022]
[1641028948104,0.88398412,47157.0,47156.0,0.01022]
[1641028948404,0.90387713,47157.0,47156.0,0.01022]
[1641028948603,0.88545825,47157.0,47156.0,0.01022]
[1641028949449,0.90620244,47157.0,47156.0,0.01022]
[1641028949654,0.98630943,47157.0,47156.0,0.01022]
[1641028950552,0.98499626,47157.0,47156.0,0.01022]
[1641028951351,1.00504244,47157.0,47156.0,0.01022]
[1641028951553,0.98561142,47157.0,47156.0,0.01022]
[1641028952350,1.00539941,47157.0,47156.0,0.01022]
[1641028952551,0.98535323,47157.0,47156.0,0.01022]
[1641028953395,1.00584194,47157.0,47156.0,0.01022]
[1641028953596,1.18605395,47157.0,47156.0,0.01022]
[1641028954397,1.20520536,47157.0,47156.0,0.01022]
[1641028954600,1.23471665,47157.0,47156.0,0.01022]
[1641028955797,2.19139219,47157.0,47156.0,0.01022]
[1641028955998,2.21052255,47157.0,47156.0,0.01022]
[1641028956200,1.2346956,47157.0,47156.0,0.01022]
[1641028956401,1.25469804,47157.0,47156.0,0.01022]
[1641028956602,1.23556768,47157.0,47156.0,0.01022]
[1641028957057,2.18948942,47157.0,47156.0,0.01022]
[1641028957455,2.21083844,47157.0,47156.0,0.01022]
[1641028957655,1.23691426,47157.0,47156.0,0.01022]
[1641028958456,2.20936881,47157.0,47156.0,0.01022]
[1641028958655,2.18801979,47157.0,47156.0,0.01022]
[1641028959057,1.23409805,47157.0,47156.0,0.01022]
[1641028960058,1.2549581,47157.0,47156.0,0.01022]
[1641028960257,1.23642529,47157.0,47156.0,0.01022]
[1641028960504,2.21136844,47157.0,47156.0,0.01022]
[1641028960706,2.19050839,47157.0,47156.0,0.01022]
[1641028960909,1.94050839,47157.0,47156.0,0.01022]
[1641028961107,1.84050839,47157.0,47156.0,0.01022]
[1641028961505,1.86071071,47157.0,47156.0,0.01022]
[1641028961704,1.8396893,47157.0,47156.0,0.01022]
[1641028961905,0.88576756,47157.0,47156.0,0.01022]
[1641028962406,0.90629791,47157.0,47156.0,0.01022]
[1641028962604,0.88609559,47157.0,47156.0,0.01022]
[1641028963407,0.90445157,47157.0,47156.0,0.01022]
[1641028963705,0.88392122,47157.0,47156.0,0.01022]
[1641028965055,0.90314681,47157.0,47156.0,0.01022]
[1641028965256,0.88479083,47157.0,47156.0,0.01022]
[1641028965455,0.90287557,47157.0,47156.0,0.01022]
[1641028966257,0.86556524,47157.0,47156.0,0.01022]
[1641028967056,0.8841049,47157.0,47156.0,0.01022]
[1641028967558,0.90287838,47157.0,47156.0,0.01022]
[1641028967758,0.88433872,47157.0,47156.0,0.01022]
[1641028968604,0.90269867,47157.0,47156.0,0.01022]
[1641028968800,0.88392519,47157.0,47156.0,0.01022]
[1641028969600,0.90553666,47157.0,47156.0,0.01022]
[1641028971204,0.92547567,47157.0,47156.0,0.01022]
[1641028971860,0.86556524,47157.0,47156.0,0.01022]
[1641028972060,0.8867941,47157.0,47156.0,0.01022]
[1641028972658,0.90867228,47157.0,47156.0,0.01022]
[1641028972858,0.88744342,47157.0,47156.0,0.01022]
[1641028973659,0.90860617,47157.0,47156.0,0.01022]
[1641028973865,0.88672799,47157.0,47156.0,0.01022]
[1641028974661,0.90841975,47157.0,47156.0,0.01022]
[1641028974864,0.887257,47157.0,47156.0,0.01022]
[1641028975715,0.88500837,47157.0,47156.0,0.01022]
[1641028976713,0.90560832,47157.0,47156.0,0.01022]
[1641028977418,0.86556524,47157.0,47156.0,0.01022]
[1641028977613,0.88361926,47157.0,47156.0,0.01022]
[1641028979260,0.90170764,47157.0,47156.0,0.01022]
[1641028979454,0.88365362,47157.0,47156.0,0.01022]
[1641028979655,0.90346227,47157.0,47156.0,0.01022]
[1641028980657,0.9221381,47157.0,47156.0,0.01022]
[1641028980857,0.88424107,47157.0,47156.0,0.01022]
[1641028981661,0.90239805,47157.0,47156.0,0.01022]
[1641028981960,0.88372222,47157.0,47156.0,0.01022]
[1641028982663,0.90184926,47157.0,47156.0,0.01022]
[1641028982862,0.88369228,47157.0,47156.0,0.01022]
[1641028983709,0.90355821,47157.0,47156.0,0.01022]
[1641028983910,0.88543117,47157.0,47156.0,0.01022]
[1641028984716,0.90671293,47157.0,47156.0,0.01022]
[1641028984912,0.886847,47157.0,47156.0,0.01022]
[1641028985715,0.90500777,47157.0,47156.0,0.01022]
[1641028985916,0.88372601,47157.0,47156.0,0.01022]
[1641028986766,0.90499579,47157.0,47156.0,0.01022]
[1641028986963,0.88683502,47157.0,47156.0,0.01022]
[1641028987761,0.90829348,47157.0,47156.0,0.01022]
[1641028987962,0.8870237,47157.0,47156.0,0.01022]
[1641028988664,0.90850093,47157.0,47156.0,0.01022]
[1641028989064,0.88704247,47157.0,47156.0,0.01022]
[1641028989862,0.90895096,47157.0,47156.0,0.01022]
[1641028990062,0.88747373,47157.0,47156.0,0.01022]
[1641028990710,0.90822987,47157.0,47156.0,0.01022]
[1641028990913,0.88632138,47157.0,47156.0,0.01022]
[1641028991711,0.90522945,47157.0,47156.0,0.01022]
[1641028991912,0.88447331,47157.0,47156.0,0.01022]
[1641028992712,0.90636814,47157.0,47156.0,0.01022]
[1641028992913,0.88746007,47157.0,47156.0,0.01022]
[1641028993713,0.90797497,47157.0,47156.0,0.01022]
[1641028993913,0.88608014,47157.0,47156.0,0.01022]
[1641028995349,0.9079071,47157.0,47156.0,0.01022]
[1641028996150,0.86556524,47157.0,47156.0,0.01022]
[1641028996352,0.88619339,47157.0,47156.0,0.01022]
[1641028996852,0.90505046,47157.0,47156.0,0.01022]
[1641028997151,0.88442231,47157.0,47156.0,0.01022]
[1641028997754,0.90481546,47157.0,47156.0,0.01022]
[1641028998006,0.88595839,47157.0,47156.0,0.01022]
[1641028998908,0.90556653,47157.0,47156.0,0.01022]
[1641028999110,0.88517338,47157.0,47156.0,0.01022]
[1641029000609,0.88531715,47157.0,47156.0,0.01022]
[1641029000811,0.90720592,47157.0,47156.0,0.01022]
[1641029001609,0.86556524,47157.0,47156.0,0.01022]
[1641029001876,0.45202826,47157.0,47156.0,0.01022]
[1641029002169,1.29020304,47157.0,47156.0,0.01022]
[1641029002968,0.45229346,47157.0,47156.0,0.01022]
[1641029003370,0.93512257,47157.0,47156.0,0.01022]
[1641029003971,0.93444321,47157.0,47156.0,0.01022]
[1641029004971,0.95618744,47157.0,47156.0,0.01022]
[1641029005175,0.93806591,47157.0,47156.0,0.01022]
[1641029005909,0.95986374,47157.0,47156.0,0.01022]
[1641029006909,0.98022611,47157.0,47156.0,0.01022]
[1641029007112,0.93668405,47157.0,47156.0,0.01022]
[1641029007910,0.95762771,47157.0,47156.0,0.01022]
[1641029008109,0.93726534,47157.0,47156.0,0.01022]
[1641029009010,0.9350531,47157.0,47156.0,0.01022]
[1641029010055,0.9545838,47157.0,47156.0,0.01022]
[1641029010257,0.93585238,47157.0,47156.0,0.01022]
[1641029011055,0.95471411,47157.0,47156.0,0.01022]
[1641029011254,0.91632168,47157.0,47156.0,0.01022]
[1641029012657,0.93827178,47157.0,47156.0,0.01022]
[1641029012860,0.95969501,47157.0,47156.0,0.01022]
[1641029013110,0.93774491,47157.0,47156.0,0.01022]
[1641029013913,0.95686528,47157.0,47156.0,0.01022]
[1641029014312,0.91632168,47157.0,47156.0,0.01022]
[1641029014915,0.93624782,47157.0,47156.0,0.01022]
[1641029015419,0.91632168,47157.0,47156.0,0.01022]
[1641029016017,0.93693173,47157.0,47156.0,0.01022]
[1641029017063,0.95756911,47157.0,47156.0,0.01022]
[1641029017865,0.91632168,47157.0,47156.0,0.01022]
[1641029018067,0.93630544,47157.0,47156.0,0.01022]
[1641029018265,0.93630544,47157.0,47156.0,0.00522]
[1641029019065,0.95824071,47157.0,47156.0,0.00522]
[1641029019266,0.93825695,47157.0,47156.0,0.00522]
[1641029020069,0.96013545,47157.0,47156.0,0.00522]
[1641029020268,0.93820018,47157.0,47156.0,0.00522]
[1641029021112,0.95781899,47157.0,47156.0,0.00522]
[1641029021315,0.93594049,47157.0,47156.0,0.00522]
[1641029022114,0.9545215,47157.0,47156.0,0.00522]
[1641029022814,0.91632168,47157.0,47156.0,0.00522]
[1641029023016,0.93709296,47157.0,47156.0,0.00522]
[1641029024116,0.95758651,47157.0,47156.0,0.00522]
[1641029024367,0.93681523,47157.0,47156.0,0.00522]
[1641029025169,0.95554107,47157.0,47156.0,0.00522]
[1641029025368,0.93504752,47157.0,47156.0,0.00522]
[1641029026270,0.95330131,47157.0,47156.0,0.00522]
[1641029026869,1.00330131,47157.0,47156.0,0.00522]
[1641029027071,1.12198673,47157.0,47156.0,0.00522]
[1641029027271,1.0850071,47157.0,47156.0,0.00522]
[1641029028014,2.03892884,47157.0,47156.0,0.00522]
[1641029028219,2.04193527,47157.0,47156.0,0.00522]
[1641029028421,0.60518442,47157.0,47156.0,0.00522]
[1641029029016,0.93801353,47157.0,47156.0,0.00522]
[1641029029315,0.93502231,47157.0,47156.0,0.00522]
[1641029030817,0.95628063,47157.0,47156.0,0.00522]
[1641029031020,0.91632168,47157.0,47156.0,0.00522]
[1641029031222,0.93585151,47157.0,47156.0,0.00522]
[1641029031964,0.91632168,47157.0,47156.0,0.00522]
[1641029032264,0.93644011,47157.0,47156.0,0.00522]
[1641029033063,0.95719905,47157.0,47156.0,0.00522]
[1641029033264,0.93708062,47157.0,47156.0,0.00522]
[1641029034266,0.93591088,47157.0,47156.0,0.00522]
[1641029034666,0.45308177,47157.0,47156.0,0.00522]
[1641029034866,1.2887904,47157.0,47156.0,0.00522]
[1641029035369,1.28841536,47157.0,47156.0,0.00522]
[1641029036218,1.30822804,47157.0,47156.0,0.00522]
[1641029036416,1.28901388,47157.0,47156.0,0.00522]
[1641029037216,1.31012071,47157.0,47156.0,0.00522]
[1641029037415,1.29030803,47157.0,47156.0,0.00522]
[1641029038216,1.3101697,47157.0,47156.0,0.00522]
[1641029038416,1.28906287,47157.0,47156.0,0.00522]
[1641029039264,0.47213071,47157.0,47156.0,0.00522]
[1641029039558,1.02151836,47157.0,47156.0,0.00522]
[1641029040167,0.47324359,47157.0,47156.0,0.00522]
[1641029040358,0.45446712,47157.0,47156.0,0.00522]
[1641029041162,1.29063974,47157.0,47156.0,0.00522]
[1641029041361,1.28841177,47157.0,47156.0,0.00522]
[1641029042361,1.02186197,47157.0,47156.0,0.00522]
[1641029042761,1.04155453,47157.0,47156.0,0.00522]
[1641029043033,1.02280795,47157.0,47156.0,0.00522]
[1641029043232,1.04188608,47157.0,47156.0,0.00522]
[1641029043432,1.02219352,47157.0,47156.0,0.00522]
[1641029044236,1.04249115,47157.0,47156.0,0.00522]
[1641029044433,1.02341302,47157.0,47156.0,0.00522]
[1641029045436,1.04378872,47157.0,47156.0,0.00522]
[1641029045737,1.02349109,47157.0,47156.0,0.00522]
[1641029046435,1.04540012,47157.0,47156.0,0.00522]
[1641029046638,1.02502442,47157.0,47156.0,0.00522]
[1641029047259,1.04698236,47157.0,47156.0,0.00522]
[1641029047556,1.02507333,47157.0,47156.0,0.00522]
[1641029048358,1.04671069,47157.0,47156.0,0.00522]
[1641029048559,1.02475275,47157.0,47156.0,0.00522]
[1641029048759,1.07475275,47157.0,47156.0,0.00522]
[1641029048960,1.17475275,47157.0,47156.0,0.00522]
[1641029049360,1.19641074,47157.0,47156.0,0.00522]
[1641029049563,1.17477338,47157.0,47156.0,0.00522]
[1641029050164,1.02477338,47157.0,47156.0,0.00522]
[1641029050363,1.04653056,47157.0,47156.0,0.00522]
[1641029051402,1.06575336,47157.0,47156.0,0.00522]
[1641029051603,1.02233819,47157.0,47156.0,0.00522]
[1641029052404,1.0223316,47157.0,47156.0,0.00522]
[1641029052807,1.28948668,47157.0,47156.0,0.00522]
[1641029053006,1.0199505,47157.0,47156.0,0.00522]
[1641029053406,1.03885648,47157.0,47156.0,0.00522]
[1641029053608,1.01964027,47157.0,47156.0,0.00522]
[1641029054469,0.98904727,47157.0,47156.0,0.00522]
[1641029055270,1.01083397,47157.0,47156.0,0.00522]
[1641029055468,0.99119552,47157.0,47156.0,0.00522]
[1641029056468,1.0126616,47157.0,47156.0,0.00522]
[1641029057167,0.96940882,47157.0,47156.0,0.00522]
[1641029057368,0.99037618,47157.0,47156.0,0.00522]
[1641029058424,1.31270363,47157.0,47156.0,0.00522]
[1641029059326,1.3326645,47157.0,47156.0,0.00522]
[1641029059525,1.29213624,47157.0,47156.0,0.00522]
[1641029059924,1.44213624,47157.0,47156.0,0.00522]
[1641029060327,1.16468541,47157.0,47156.0,0.00522]
[1641029060526,0.99472454,47157.0,47156.0,0.00522]
[1641029060927,1.29258077,47157.0,47156.0,0.00522]
[1641029061325,1.31066315,47157.0,47156.0,0.00522]
[1641029062258,1.27186239,47157.0,47156.0,0.00522]
[1641029062458,1.29009362,47157.0,47156.0,0.00522]
[1641029063458,1.30976598,47157.0,47156.0,0.00522]
[1641029063657,1.29153475,47157.0,47156.0,0.00522]
[1641029064460,1.31268309,47157.0,47156.0,0.00522]
[1641029064660,1.29301073,47157.0,47156.0,0.00522]
[1641029065363,1.31371531,47157.0,47156.0,0.00522]
[1641029065617,1.29256697,47157.0,47156.0,0.00522]
[1641029066518,1.3123483,47157.0,47156.0,0.00522]
[1641029066719,1.29164372,47157.0,47156.0,0.00522]
[1641029067321,0.99409457,47157.0,47156.0,0.00522]
[1641029067523,1.01502821,47157.0,47156.0,0.00522]
[1641029067720,0.99524688,47157.0,47156.0,0.00522]
[1641029068521,1.01635676,47157.0,47156.0,0.00522]
[1641029068721,0.99542312,47157.0,47156.0,0.00522]
[1641029069468,1.0142519,47157.0,47156.0,0.00522]
[1641029070467,1.03256728,47157.0,47156.0,0.00522]
[1641029070668,0.99262862,47157.0,47156.0,0.00522]
[1641029071474,1.01306041,47157.0,47156.0,0.00522]
[1641029071673,0.99474503,47157.0,47156.0,0.00522]
[1641029072472,1.01582185,47157.0,47156.0,0.00522]
[1641029072874,0.99539006,47157.0,47156.0,0.00522]